Cogmind - Beta 16 @@@ ROGUE MODE // 2026.01.24 @ 17:13:09 Player: ae Result: Destroyed by X-77 Beamer with Gatling Laser Performance ------------- Evolutions (6) 3000 Regions Visited (16) 3200 Robots Destroyed (152) 760 Value Destroyed (4628) 4628 Prototype IDs (38) 760 Alien Tech Used (1) 200 Bonus (600) 600 TOTAL SCORE: 13148 Bonus ------- Aligned with FarCom 300 Met Zhirov 300 Cogmind --------- Core Integrity 0/1150 Matter 258/300 Energy 100/100 System Corruption 24% Temperature Critical (917) Movement Core (300) Ox5 Location -4/Factory Parts ------- > --- POWER (3) -------- (None) > --- PROPULSION (6) --- Flexi-carbon Leg > --- UTILITY (6) ------ (None) > --- WEAPON (4) ------- Phase Cannon Phase Cannon > --- INVENTORY (5) ---- Medium Storage Unit Field Recycling Unit (0) Improved Remote Datajack Peak State ------------ > --- POWER ------------ Micro Fission Core Micro Fission Core Light Antimatter Reactor > --- PROPULSION ------- Armored Medium Treads Antigrav System Antigrav System Antigrav System Antigrav System Improved Antigrav System > --- UTILITY ---------- Advanced Heat Sink Advanced Coolant Injector Medium Storage Unit Improved Target Analyzer Improved Power Shielding Advanced Shield Generator > --- WEAPON ----------- High-powered Shock Rifle Plasma Rifle HERF Cannon Railgun > --- INVENTORY -------- Flexi-carbon Leg Medium Storage Unit High-capacity Storage Unit Field Recycling Unit Improved Remote Datajack Improved Remote Datajack [Rating: 109] Favorites ----------- Power Improved Deuterium Engine Engine Improved Deuterium Engine Power Core Micro Nuclear Core Reactor Fusion Reactor Propulsion Flexi-carbon Leg Treads Improved Treads Leg Flexi-carbon Leg Wheel Compact Wheel Hover Unit Antigrav System Flight Unit Nuclear Pulse Thruster Utility Huge Storage Unit Device Structural Scanner Storage Huge Storage Unit Processor Enhanced Optical Array Hackware Hacking Suite Protection Medium Insulated Plating Weapon Improved EM Pulse Cannon Energy Gun Improved EM Shotgun Energy Cannon Improved EM Pulse Cannon Ballistic Gun KE Penetrator Ballistic Cannon Light Cannon Launcher Mini Grenade Launcher Special Weapon Mining Laser Impact Weapon Power Maul Slashing Weapon Greatsword Build | -11 -10 -9 -9 -9 -8 -8 -7 -6 -6 -6 -5 -5 -5 -5 -4 -4 ------- Run | Yrd Mat Mat Min Exi Min Mat Fac Fac Was Fac Fac Upp Upp Zhi Pro Fac Slots Evolved 12 | . . 2 . . . 2 2 2 . . 2 . . . . 2 Power 2 | . . . . . . . . 1 . . 1 . . . . . Propulsion 4 | . . . . . . 1 1 1 . . 1 . . . . . Utility 4 | . . . . . . 1 1 . . . . . . . . 2 Weapon 2 | . . 2 . . . . . . . . . . . . . . Parts Attached 171 | 7 5 8 3 1 1 13 6 5 2 13 1 35 13 1 7 50 Power 25 | 1 1 . 1 . . . 2 1 1 1 1 7 1 1 1 6 Engine 7 | 1 . . 1 . . . 1 . . . 1 2 . . . 1 Core 15 | . 1 . . . . . 1 1 1 1 . 5 1 . 1 3 Reactor 3 | . . . . . . . . . . . . . . 1 . 2 Propulsion 52 | 2 2 2 . . . 6 1 2 1 4 . 12 5 . 3 12 Treads 11 | . . . . . . . . . . . . 4 4 . . 3 Leg 28 | 2 2 2 . . . 6 1 2 1 4 . 5 . . . 3 Wheel 2 | . . . . . . . . . . . . 2 . . . . Hover 6 | . . . . . . . . . . . . . . . . 6 Flight 5 | . . . . . . . . . . . . 1 1 . 3 . Utility 51 | 2 1 2 1 . 1 2 2 2 . 6 . 9 3 . 3 17 Device 28 | 1 1 1 1 . 1 . . . . 3 . 5 3 . 2 10 Storage 8 | 1 . 1 . . . . . 1 . 1 . 2 . . . 2 Processor 8 | . . . . . . 1 1 1 . 2 . 1 . . . 2 Hackware 1 | . . . . . . 1 . . . . . . . . . . Protection 6 | . . . . . . . 1 . . . . 1 . . 1 3 Artifact . | . . . . . . . . . . . . . . . . . Weapon 43 | 2 1 4 1 1 . 5 1 . . 2 . 7 4 . . 15 Energy Gun 15 | . . 2 . . . 1 . . . . . 2 1 . . 9 Energy Cannon 10 | . . . . . . 3 1 . . . . . 1 . . 5 Ballistic Gun 9 | 2 . . . . . . . . . . . 5 1 . . 1 Ballistic Cannon 1 | . . 1 . . . . . . . . . . . . . . Launcher 2 | . . . 1 . . 1 . . . . . . . . . . Special Weapon 2 | . 1 . . . . . . . . . . . 1 . . . Impact Weapon 1 | . . . . 1 . . . . . . . . . . . . Slashing Weapon 3 | . . 1 . . . . . . . 2 . . . . . . Piercing Weapon . | . . . . . . . . . . . . . . . . . Special Melee Weapon . | . . . . . . . . . . . . . . . . . Unidentified Prototypes 3 | . . 1 . . . . . . . . . . . 2 . . Parts Lost 119 | . . 6 2 . . 3 1 . 3 . . 29 16 . 13 46 Power 18 | . . 1 . . . . 1 . . . . 7 3 . 1 5 Propulsion 39 | . . . . . . 1 . . 3 . . 10 5 . 8 12 Utility 33 | . . 1 1 . . . . . . . . 7 2 . 2 20 Weapon 29 | . . 4 1 . . 2 . . . . . 5 6 . 2 9 Highest Loss Streak 18 | . . 4 1 . . 3 1 . 3 . . 9 8 . 12 18 To Critical Strikes 1 | . . 1 . . . . . . . . . . . . . . Average Backups 12 | 5 8 8 9 9 9 8 9 20 20 15 23 18 17 17 18 7 Power . | 1 1 . 1 1 1 1 . 2 2 . . 1 . . . . Propulsion 3 | 3 2 2 2 2 2 2 2 2 1 7 8 6 5 4 4 . Utility 5 | . 1 2 3 3 3 2 1 7 5 5 11 8 10 11 11 4 Weapon 2 | 1 2 2 2 2 2 1 3 7 9 1 3 1 . 1 . . Tool/Special . | . . . . . . . . . . . . . . . . . Unused Backups 55 | 1 5 2 2 . . . 7 4 15 2 1 . . . 9 7 Power 10 | 1 1 . . . . . 2 2 2 . . . . . . 2 Propulsion 9 | . 3 . . . . . 2 . . 2 . . . . 1 1 Utility 19 | . . . . . . . 2 1 7 . 1 . . . 7 1 Weapon 14 | . 1 2 2 . . . 1 1 5 . . . . . 1 1 Tool/Special 3 | . . . . . . . . . 1 . . . . . . 2 Average Slot Usage (%) 89 | . 99 95 98 92 100 95 95 99 64 85 85 92 90 67 70 70 Engine 4 | . 4 9 11 11 11 9 5 2 . . 2 . . . . 2 Core 6 | . 9 2 . . . . . 10 6 12 11 14 12 5 7 3 Treads 6 | . . . . . . . . . . . . 13 27 29 18 5 Leg 18 | . 28 22 22 22 22 25 29 32 28 32 35 14 3 . . 1 Flight 1 | . . . . . . . . . . . . 1 1 5 7 8 Device 7 | . 13 9 9 11 11 3 . . . 5 5 4 9 11 10 11 Storage 7 | . 14 11 11 11 11 9 7 6 5 5 5 9 8 9 4 2 Processor 4 | . . . . . . 5 7 10 13 13 11 5 3 . . 2 Hackware 1 | . . . . . . 8 7 6 6 . . . . . . . Protection 1 | . . . . . . . 7 2 . . . . . . 4 5 Energy Gun 4 | . . 10 16 11 11 6 . . . . . 3 3 . . 8 Energy Cannon 4 | . . . . . . 7 17 20 2 . . . 3 1 3 2 Ballistic Gun 4 | . 26 7 . . . . . . . . . 14 10 1 3 . Ballistic Cannon 2 | . . 10 11 11 11 1 . . . . . . . . . . Launcher 1 | . . . 5 . 10 9 2 . . . . . . . . . Impact Weapon 2 | . . . . 3 11 9 6 6 . . . . . . . . Slashing Weapon 3 | . . 9 11 11 . . . . . 12 11 . . . . . Peak Build Rating 109 | 7 10 15 19 21 22 42 49 62 61 68 74 85 87 65 77 109 Average Rating 51 | 5 9 11 17 17 21 30 46 59 39 64 72 77 75 59 65 76 On Entrance 38 | . 7 10 15 18 21 22 42 47 62 26 68 74 83 65 59 28 Avg Prop Armor Cover (%) 7 | . . . . . . . . . . . . 6 2 1 9 12 Naked Turns . | . . . . . . . . . . . . . . . . . Heaviest Build 151 | 13 13 27 32 32 32 43 50 118 86 104 110 151 151 106 131 96 Greatest Support 136 | 20 20 23 23 23 23 54 69 94 89 100 118 120 136 136 108 93 Greatest Overweight (x) 9 | 3 . 1 1 1 1 1 . 1 1 1 . 9 1 . 1 5 Average Overweight (x) . | . . . 1 1 1 . . . . . . 2 . . . . Largest Inventory Capacity 25 | 8 8 10 10 10 10 10 10 25 25 25 25 25 25 25 25 20 Average Capacity 16 | 7 8 9 10 10 10 10 10 24 21 22 25 25 25 25 21 9 Most Carried 25 | 8 8 10 10 10 10 10 10 25 25 25 25 25 25 22 24 18 Average Carried 13 | 6 7 8 9 9 10 9 9 21 20 16 24 19 18 18 18 7 Final Capacity 25 | 8 8 10 10 10 10 10 10 25 5 25 25 25 25 25 5 5 Final Carried 25 | 8 8 10 10 10 10 10 10 25 5 25 25 20 17 22 5 3 Class Distribution -------------------- 28% | Skirmisher 21% | Mutant 11% | Gladiator 8% | Derelict-Mutant 7% | Scavenger-Skirmisher 7% | Derelict-Skirmisher 7% | Tank Dominant Class ---------------- Mutant | -10/Materials Gunner | -9/Materials Skirmisher | -9/Mines Mutant | -9/Exiles Skirmisher | -8/Mines Skirmisher | -8/Materials Skirmisher | -7/Factory Skirmisher | -6/Factory Mutant | -6/Waste Gladiator | -6/Factory Gladiator | -5/Factory Scavenger-Skirmisher | -5/Upper Caves Derelict-Skirmisher | -5/Upper Caves Derelict-Mutant | -5/Zhirov Derelict-Mutant | -4/Proximity Caves Tank | -4/Factory Resources | -11 -10 -9 -9 -9 -8 -8 -7 -6 -6 -6 -5 -5 -5 -5 -4 -4 ----------- Run | Yrd Mat Mat Min Exi Min Mat Fac Fac Was Fac Fac Upp Upp Zhi Pro Fac Matter Collected 3950 | 322 113 233 18 16 166 245 159 135 . 263 10 857 438 . 295 680 Remotely 519 | 194 102 . . . . . . . . . . . . . . 223 Salvage Created 6437 | 209 229 427 40 . 272 443 765 160 . 539 107 1033 215 . 117 1881 Parts 269 | 12 17 26 4 . 18 15 25 9 . 25 1 37 19 . 7 54 Haulers Intercepted 5 | . . 2 . . . 1 1 . . . . . . . . 1 Recyclers Shooed 3 | . . . 1 . . . . . . 1 . . . . . 1 Parts Field Recycled . | . . . . . . . . . . . . . . . . . Retrieved Matter . | . . . . . . . . . . . . . . . . . Parts Self-Destructed 45 | . . . . . . . . . . . . 25 12 . 8 . Prevented 12 | . . . . . . . . . . . . 3 7 . 2 . Parts Restored . | . . . . . . . . . . . . . . . . . Kills | -11 -10 -9 -9 -9 -8 -8 -7 -6 -6 -6 -5 -5 -5 -5 -4 -4 ------- Run | Yrd Mat Mat Min Exi Min Mat Fac Fac Was Fac Fac Upp Upp Zhi Pro Fac Combat Hostiles Destroyed 94 | . 4 10 1 . 7 11 14 1 . 2 . 16 6 . 4 18 Melee 15 | . . 2 . . . . 5 1 . 2 . 5 . . . . Guns 36 | . 4 1 1 . . 2 . . . . . 11 5 . 3 9 Cannons 13 | . . 7 . . 1 1 . . . . . . . . 1 3 AOE 18 | . . . . . 6 7 5 . . . . . . . . . Classes Destroyed 16 | 3 4 3 . . . . 3 . . . . 1 1 . . 1 Worker 15 | 2 . . . . 5 2 1 3 . 2 . . . . . . Builder 14 | . 1 2 1 . 1 2 2 3 . 1 . . . . . 1 Tunneler 10 | 4 . 1 . . 3 . 1 1 . . . . . . . . Hauler 5 | . . 2 . . . 1 1 . . . . . . . . 1 Recycler 10 | 1 . . . . 1 1 1 . . 3 . . . . . 3 Operator 1 | . 1 . . . . . . . . . . . . . . . Watcher 3 | . 1 . . . . 1 1 . . . . . . . . . Swarmer 28 | . . 4 1 . 7 4 1 . . . . 2 5 . 4 . Grunt 32 | . 4 3 . . . 5 7 . . . . 4 . . . 9 Brawler 5 | . . . . . . . 2 . . . . 3 . . . . Duelist 3 | . . . . . . . 2 . . . . 1 . . . . Sentry 8 | . . 3 . . . 2 . . . . . 2 . . . 1 Specialist 3 | . . . . . . . . . . . . . . . . 3 Hunter 4 | . . . . . . . . . . . . 4 . . . . Programmer 10 | . . . . . . . 2 1 . 2 . . . . . 5 Behemoth 1 | . . . . . . . . . . . . . 1 . . . Best Kill Streak 7 | 6 2 5 1 . 7 5 4 2 . 3 . 6 5 . 4 5 Combat Bots Only 6 | . 1 4 1 . 4 4 3 1 . 1 . 6 5 . 4 5 Max Kills in Single Turn 4 | 1 1 1 1 . 3 4 3 1 . 1 . 1 2 . 2 2 Gunslinging 1 | . . . . . . . . . . . . . 1 . . 1 Exploded 3 | . . . . . 3 3 3 . . . . . . . . . Melee 1 | . . 1 . . . . 1 1 . 1 . 1 . . . . Uniques/NPCs Destroyed . | . . . . . . . . . . . . . . . . . Combat | -11 -10 -9 -9 -9 -8 -8 -7 -6 -6 -6 -5 -5 -5 -5 -4 -4 -------- Run | Yrd Mat Mat Min Exi Min Mat Fac Fac Was Fac Fac Upp Upp Zhi Pro Fac Hostile Shots Fired 982 | . 30 64 10 . 15 31 31 4 3 10 . 218 104 . 115 347 Missed 257 | . 8 13 2 . 4 7 10 2 . 3 . 45 27 . 34 102 Hits 725 | . 22 51 8 . 11 24 21 2 3 7 . 173 77 . 81 245 Melee 27 | . . . . . . . 5 . 3 . . 19 . . . . Projectile 698 | . 22 51 8 . 11 24 16 2 . 7 . 154 77 . 81 245 Critical Strikes 43 | . . 1 . . . 2 . . 2 1 . 12 2 . 4 19 Actively Blocked 1 | . . . . . . . . . . . . . . . . 1 Part Disruptions 8 | . . . . . . . . . . . . . . . 1 7 Actively Blocked 1 | . . . . . . . . . . . . . . . . 1 Damage Taken 13795 | . 306 642 81 . 148 421 540 32 130 103 . 3846 985 . 1489 5072 Core 2241 | . 84 96 . . 18 39 17 16 95 30 . 376 87 . 221 1162 Absorbed by Shields 230 | . . . . . . . . . . . . . . . . 230 Redirected to Shielding 145 | . . . . . . . . . . . . . . . . 145 Ignored by Resistances 91 | . . . . . . . 22 . . . . 69 . . . . Core Remaining (%) 77 | 100 66 . . . 71 92 97 . . 83 . . . . 31 . Volleys Fired 327 | 26 34 27 3 . 9 11 4 . . . . 49 14 11 24 115 Largest 4 | 2 2 4 2 . 3 3 3 . . . . 4 4 1 2 4 Hottest 266 | 40 100 170 75 . 105 174 174 . . . . 159 169 33 114 266 Shots Fired 709 | 52 65 64 6 1 15 20 11 . . . . 111 41 10 34 279 Gun 542 | 52 63 29 3 . 3 3 . . . . . 111 33 10 25 210 Cannon 140 | . . 27 3 1 9 6 8 . . . . . 8 . 9 69 Launcher 17 | . . . . . 3 11 3 . . . . . . . . . Special 10 | . 2 8 . . . . . . . . . . . . . . Kinetic 351 | 52 63 54 3 1 9 1 . . . . . 99 20 10 25 14 Thermal 155 | . 2 8 . . . . . . . . . . . . . 145 Explosive 17 | . . . . . 3 11 3 . . . . . . . . . Electromagnetic 186 | . . 2 3 . 3 8 8 . . . . 12 21 . 9 120 Robot Hit Streak 26 | 26 10 9 1 . 3 5 4 . . . . 10 4 . 9 13 Robot Miss Streak 6 | 4 3 6 4 . 4 3 4 . . . . 5 3 . 4 4 Penetration Max 1 | . . . . . . . . . . . . 1 . . . 1 Secondary Targets 5 | . . . . . . . . . . . . 1 2 . . 2 Max Gunslinging Chain 1 | . . . . . . . . . . . . 1 1 . . 1 Capacitor 16 | . . . . . . . . . . . . . . . . 16 Shots Hit Robots 523 | 37 41 50 5 . 15 12 31 10 . 14 1 80 23 . 19 185 Core Hits 234 | 13 21 21 2 . 10 26 16 . . 6 . 36 10 . 6 67 Critical Kills 5 | . . . . . . 1 3 . . . . . . . . 1 Critical Parts Destroyed 19 | . . . . . 2 4 6 4 . . . 3 . . . . Critical Strikes 39 | . . 1 . . 2 5 9 4 . 2 . 8 1 . . 7 Burn 3 | . . . . . . . . . . . . . . . . 3 Destroy 4 | . . . . . . . . . . . . 3 . . . 1 Blast 1 | . . 1 . . . . . . . . . . . . . . Corrupt 5 | . . . . . . . . . . . . 1 1 . . 3 Smash 20 | . . . . . 2 5 9 4 . . . . . . . . Sever 6 | . . . . . . . . . . 2 . 4 . . . . Melee Attacks 147 | . . 24 3 . 10 13 39 16 . 25 1 16 . . . . Impact 78 | . . . . . 10 13 39 16 . . . . . . . . Slashing 69 | . . 24 3 . . . . . . 25 1 16 . . . . Piercing . | . . . . . . . . . . . . . . . . . Sneak Attacks 41 | . . 3 2 . 9 4 7 9 . 6 . 1 . . . . Combat Hostiles 2 | . . . . . . . 1 . . 1 . . . . . . Follow-up Attacks 2 | . . . . . . . . . . 1 . 1 . . . . Damage Inflicted 15291 | 276 311 885 88 . 1236 1500 2153 853 . 1049 104 2067 626 . 560 3583 Guns 5544 | 276 311 142 19 . 9 36 . . . . . 1423 421 . 424 2483 Cannons 1864 | . . 358 . . 54 41 96 . . . . . 130 . 136 1049 Explosions 1795 | . . . . . 268 883 518 . . . . . 75 . . 51 Melee 6033 | . . 337 69 . 898 540 1539 853 . 1049 104 644 . . . . Ramming 7 | . . . . . 7 . . . . . . . . . . . Kinetic 3374 | 276 311 491 . . 54 17 . . . . . 1285 342 . 424 174 Thermal 1893 | . . 48 . . . . . . . . . . 75 . . 1770 Explosive 1669 | . . . . . 268 883 518 . . . . . . . . . Electromagnetic 2315 | . . 9 19 . 9 60 96 . . . . 138 209 . 136 1639 Impact 3830 | . . . . . 898 540 1539 853 . . . . . . . . Slashing 2203 | . . 337 69 . . . . . . 1049 104 644 . . . . Piercing . | . . . . . . . . . . . . . . . . . Highest Corruption 31 | . . 2 2 2 2 . 1 . 8 8 . 21 21 21 31 24 Average Corruption 9 | . . 2 2 2 2 . 1 . 8 6 . 15 21 21 23 12 Corruption Purged 3 | . . . . . . . . . . 3 . . . . . . Corruption Blocked . | . . . . . . . . . . . . . . . . . Effects 314 | . . 5 5 15 9 . 10 . 2 36 . 69 74 20 18 51 Message Errors 73 | . . 1 3 2 4 . . . 1 15 . 15 13 4 5 10 Matter Fused 73 | . . 2 1 5 1 . 5 . . 7 . 17 17 5 2 11 Heat Flow Errors 45 | . . 1 1 1 1 . 1 . 1 9 . 8 11 4 2 5 Energy Discharges 28 | . . 1 . 2 1 . 1 . . 1 . 8 10 1 1 2 Parts Rejected 2 | . . . . . . . . . . . . 1 . . 1 . Parts Fused 1 | . . . . . . . . . . . . . . 1 . . Data Loss (minor) 38 | . . . . 3 1 . . . . 3 . 7 13 3 4 4 Data Loss (major) 13 | . . . . 1 1 . 1 . . 1 . 5 1 1 . 2 Misfires 10 | . . . . 1 . . 1 . . . . 2 2 . 1 3 Alerts 8 | . . . . . . . 1 . . . . 1 5 . 1 . Misdirections 2 | . . . . . . . . . . . . . . . 1 1 Weapon Failures 21 | . . . . . . . . . . . . 5 2 1 . 13 Overload Shots . | . . . . . . . . . . . . . . . . . Overflow Damage 2488 | . . 28 . . 486 399 641 596 . 188 62 . . . 16 72 Projectiles 22 | . . . . . . . . . . . . . . . 16 6 Explosions 110 | . . . . . 35 . 9 . . . . . . . . 66 Melee 2356 | . . 28 . . 451 399 632 596 . 188 62 . . . . . Knockbacks 13 | . . 1 . . 3 2 4 3 . . . . . . . . Impact 12 | . . . . . 3 2 4 3 . . . . . . . . Kinetic 1 | . . 1 . . . . . . . . . . . . . . Secondary . | . . . . . . . . . . . . . . . . . Self-Inflicted Damage 397 | . . . . . 57 119 143 . . . . . . . . 78 Shots 10 | . . . . . 2 4 3 . . . . . . . . 1 Rammed . | . . . . . . . . . . . . . . . . . Targets Rammed 1 | . . . . . 1 . . . . . . . . . . . Kicked 1 | . . . . . 1 . . . . . . . . . . . Crushed . | . . . . . . . . . . . . . . . . . Highest Temperature 869 | . 56 213 252 138 251 126 222 . 168 274 . 425 319 157 198 869 Average Temperature 117 | . 13 78 83 78 75 40 70 . 86 117 . 169 111 77 72 123 Received Heat Transfer 2320 | . 180 222 9 . . 162 72 . . . . 522 368 . 39 746 Effects 26 | . . . . . 1 . . . . 5 . 11 1 . . 8 Shutdowns 7 | . . . . . . . . . . . . 6 . . . 1 Energy Bleed 7 | . . . . . . . . . . 1 . 5 1 . . . Interference 7 | . . . . . 1 . . . . 4 . . . . . 2 Damage (minor) 1 | . . . . . . . . . . . . . . . . 1 Damage (major) 2 | . . . . . . . . . . . . . . . . 2 Damage (core) 2 | . . . . . . . . . . . . . . . . 2 Siege Activations . | . . . . . . . . . . . . . . . . . Martial Activations . | . . . . . . . . . . . . . . . . . Shielding Activations . | . . . . . . . . . . . . . . . . . Robots Disrupted 1 | . . . . . . . . . . . . . . . . 1 Combat Hostiles 1 | . . . . . . . . . . . . . . . . 1 Robots Corrupted 24 | . . . . . 4 3 7 4 . . . . 1 . . 5 Combat Hostiles 11 | . . . . . . 1 4 . . . . . 1 . . 5 Parts Fried 53 | . . . . . 9 2 7 15 . . . . 1 . 1 18 Impact Corruptions 69 | . . . . . 15 13 24 17 . . . . . . . . Robots Melted 1 | . . . . . . . . . . . . . . . . 1 Combat Hostiles 1 | . . . . . . . . . . . . . . . . 1 Parts Melted 15 | . . . . . . . . . . . . . . . . 15 Heat Transferred 4573 | . . 100 . . . . . . . . . . 50 . . 4423 Parts Sabotaged . | . . . . . . . . . . . . . . . . . Parts Stolen . | . . . . . . . . . . . . . . . . . Parts Stripped . | . . . . . . . . . . . . . . . . . Power Chain Reactions 2 | . . . . . . . . . . . . . 1 . . 1 Alert | -11 -10 -9 -9 -9 -8 -8 -7 -6 -6 -6 -5 -5 -5 -5 -4 -4 ------- Run | Yrd Mat Mat Min Exi Min Mat Fac Fac Was Fac Fac Upp Upp Zhi Pro Fac Maximum Alert Level 1 | . . . . . . . 1 . . . . . . . . . Low Security (%) 99 | 100 100 100 100 . 100 100 99 100 100 100 100 . . . . 100 Level 1 . | . . . . . . . . . . . . . . . . . Level 2 . | . . . . . . . . . . . . . . . . . Level 3 . | . . . . . . . . . . . . . . . . . Level 4 . | . . . . . . . . . . . . . . . . . Level 5 . | . . . . . . . . . . . . . . . . . High Security . | . . . . . . . . . . . . . . . . . Max Security . | . . . . . . . . . . . . . . . . . Peak Influence 206 | 10 60 64 65 . 105 155 206 99 . 38 2 . . . . 125 Initial 99 | . 3 16 18 . . 13 51 99 . . 2 . . . . 18 Average 26 | 1 19 26 9 . 34 75 38 13 . 5 . . . . . 23 Influence Increases 3395 | 35 165 320 70 . 311 473 486 95 . 147 5 365 140 . 120 663 Destroy 0b10 Robot/C 1880 | . 80 200 20 . 140 220 280 20 . 40 . 320 120 . 80 360 Destroy 0b10 Robot/NC 295 | 35 15 25 5 . 50 35 35 35 . 30 5 . . . . 25 Destroy Leader 356 | . 22 54 . . 20 54 44 10 . 20 . 30 20 . 10 72 Successful Hack 142 | . 3 19 . . . . 47 25 . 36 . . . . . 12 Disable Machine 120 | . 15 . . . . 30 45 . . . . . . . . 30 Destroy Structure 182 | . . 7 . . 26 59 35 5 . 6 . . . . . 44 Partial Spotted 45 | . . . . . . 15 . . . 15 . . . . . 15 Lose Combat Pursuer 375 | . 30 15 45 . 75 60 . . . . . 15 . . 30 105 Influence Decreases 3352 | 30 131 311 118 . 275 396 396 298 . 140 12 365 140 . 90 650 Entered New Map 261 | . 2 23 30 . . 23 62 104 . . 5 . . . . 12 Time Decay 2564 | 30 129 238 78 . 275 343 334 194 . 140 7 243 100 . 90 363 Lost Part 527 | . . 50 10 . . 30 . . . . . 122 40 . . 275 Squads Dispatched 21 | . 1 2 1 . . 2 4 2 . 3 . . . . . 6 Investigation 3 | . . . 1 . . . 1 . . . . . . . . 1 Extermination 8 | . . . . . . . 2 1 . 2 . . . . . 3 Reinforcement 10 | . 1 2 . . . 2 1 1 . 1 . . . . . 2 Assault . | . . . . . . . . . . . . . . . . . Garrison . | . . . . . . . . . . . . . . . . . Intercept . | . . . . . . . . . . . . . . . . . Searches Triggered . | . . . . . . . . . . . . . . . . . Construction Impeded 1 | . . . . . . . 1 . . . . . . . . . Haulers Reinforced 1 | . . . . . . . . 1 . . . . . . . . Active Scanning Responses . | . . . . . . . . . . . . . . . . . Cargo Convoy Interrupts . | . . . . . . . . . . . . . . . . . Stealth | -11 -10 -9 -9 -9 -8 -8 -7 -6 -6 -6 -5 -5 -5 -5 -4 -4 --------- Run | Yrd Mat Mat Min Exi Min Mat Fac Fac Was Fac Fac Upp Upp Zhi Pro Fac Distress Signals 6 | . . 4 . . . . . . . . . . . . . 2 Communications Jammed . | . . . . . . . . . . . . . . . . . Distress Signals . | . . . . . . . . . . . . . . . . . Times Spotted 142 | . 11 17 6 . 10 16 16 1 5 1 . 18 6 . 8 27 Peak Tracking Total 7 | . 3 5 4 . 4 5 4 . 5 1 . 7 5 . 5 6 Tactical Retreats 16 | . 2 1 1 . 3 3 . . . . . 1 . . 1 4 Traps | -11 -10 -9 -9 -9 -8 -8 -7 -6 -6 -6 -5 -5 -5 -5 -4 -4 ------- Run | Yrd Mat Mat Min Exi Min Mat Fac Fac Was Fac Fac Upp Upp Zhi Pro Fac Traps Triggered 11 | . . 1 . . . . 4 3 . 1 . . . . . 2 Indirectly . | . . . . . . . . . . . . . . . . . Trap Hack Attempts . | . . . . . . . . . . . . . . . . . Triggered . | . . . . . . . . . . . . . . . . . Disarmed . | . . . . . . . . . . . . . . . . . Reprogrammed . | . . . . . . . . . . . . . . . . . Reused . | . . . . . . . . . . . . . . . . . Traps Extracted . | . . . . . . . . . . . . . . . . . Installed . | . . . . . . . . . . . . . . . . . Triggered . | . . . . . . . . . . . . . . . . . Machines | -11 -10 -9 -9 -9 -8 -8 -7 -6 -6 -6 -5 -5 -5 -5 -4 -4 ---------- Run | Yrd Mat Mat Min Exi Min Mat Fac Fac Was Fac Fac Upp Upp Zhi Pro Fac Machines Disabled 8 | . 1 . . . . 2 3 . . . . . . . . 2 Max in Single Turn 2 | . 1 . . . . 2 1 . . . . . . . . 1 Garrison Access 1 | . . . . . . 1 . . . . . . . . . . Machines Repaired . | . . . . . . . . . . . . . . . . . Machines Dismantled . | . . . . . . . . . . . . . . . . . Machines Sabotaged . | . . . . . . . . . . . . . . . . . Overloaded Fab Kills . | . . . . . . . . . . . . . . . . . Hacking | -11 -10 -9 -9 -9 -8 -8 -7 -6 -6 -6 -5 -5 -5 -5 -4 -4 --------- Run | Yrd Mat Mat Min Exi Min Mat Fac Fac Was Fac Fac Upp Upp Zhi Pro Fac Machines Accessed 41 | . 3 3 1 1 . 1 8 3 . 7 . . . 9 . 5 Terminals 18 | . 2 3 . . . . 4 3 . 5 . . . . . 1 Fabricators 3 | . . . . . . . 2 . . . . . . . . 1 Repair Stations 2 | . . . . . . . . . . . . . . . . 2 Recycling Units 5 | . 1 . . . . . 1 . . 2 . . . . . 1 Scanalyzers 1 | . . . . . . . 1 . . . . . . . . . Garrison Access 1 | . . . . . . 1 . . . . . . . . . . Total Hacks 124 | . 8 14 1 1 . 1 20 10 . 12 . . . 48 . 9 Successful 97 | . 4 8 1 1 . 1 13 7 . 7 . . . 48 . 7 Failed 27 | . 4 6 . . . . 7 3 . 5 . . . . . 2 Catastrophic 7 | . 2 . . . . . 1 . . 3 . . . . . 1 Database Lockouts . | . . . . . . . . . . . . . . . . . Manual 37 | . 7 10 . 1 . . 6 6 . 6 . . . . . 1 Terminals 47 | . 4 14 . . . . 8 10 . 9 . . . . . 2 Fabricators 6 | . . . . . . . 5 . . . . . . . . 1 Repair Stations 4 | . . . . . . . . . . . . . . . . 4 Recycling Units 11 | . 4 . . . . . 2 . . 3 . . . . . 2 Scanalyzers 5 | . . . . . . . 5 . . . . . . . . . Garrison Access 1 | . . . . . . 1 . . . . . . . . . . Terminal Hacks 66 | . . 5 1 1 . . 3 4 . 3 . . . 48 . 1 Record 37 | . . . . . . . . . . 1 . . . 36 . . Part Schematic 6 | . . . . . . . 1 1 . . . . . 4 . . Robot Analysis 5 | . . . . . . . . . . . . . . 4 . 1 Prototype ID Bank 5 | . . 1 . . . . . . . . . . . 4 . . Open Door 1 | . . . 1 . . . . . . . . . . . . . Open DSF 2 | . . . . . . . 1 . . 1 . . . . . . Branch Access Points 1 | . . . . . . . . . . 1 . . . . . . Emergency Access Points 1 | . . 1 . . . . . . . . . . . . . . Terminal Index 1 | . . 1 . . . . . . . . . . . . . . Alert Level 1 | . . . . . . . . 1 . . . . . . . . Locate Traps 2 | . . 1 . . . . . 1 . . . . . . . . Zone Layout 3 | . . 1 . . . . 1 1 . . . . . . . . Proto ID Catalog 1 | . . . . 1 . . . . . . . . . . . . Fabricator Hacks 3 | . . . . . . . 2 . . . . . . . . 1 Load Schematic 2 | . . . . . . . 1 . . . . . . . . 1 Build 1 | . . . . . . . 1 . . . . . . . . . Repair Station Hacks 3 | . . . . . . . . . . . . . . . . 3 Scan Component 1 | . . . . . . . . . . . . . . . . 1 Refit 2 | . . . . . . . . . . . . . . . . 2 Recycling Unit Hacks 5 | . 1 . . . . . 1 . . 2 . . . . . 1 Report Inventory 4 | . 1 . . . . . 1 . . 1 . . . . . 1 Retrieve Components 1 | . . . . . . . . . . 1 . . . . . . Scanalyzer 4 | . . . . . . . 4 . . . . . . . . . Insert Component 1 | . . . . . . . 1 . . . . . . . . . Retrieve Study 3 | . . . . . . . 3 . . . . . . . . . Garrison Access Hacks 1 | . . . . . . 1 . . . . . . . . . . Seal Access 1 | . . . . . . 1 . . . . . . . . . . Unauthorized Hacks 15 | . 3 3 . . . . 3 3 . 2 . . . . . 1 Terminals 13 | . 2 3 . . . . 3 3 . 2 . . . . . . Track 2 | . 1 1 . . . . . . . . . . . . . . Botnet 11 | . 1 2 . . . . 3 3 . 2 . . . . . . Fabricators . | . . . . . . . . . . . . . . . . . Repair Stations . | . . . . . . . . . . . . . . . . . Recycling Units 2 | . 1 . . . . . . . . . . . . . . 1 Monitor 2 | . 1 . . . . . . . . . . . . . . 1 Scanalyzers . | . . . . . . . . . . . . . . . . . Garrison Access . | . . . . . . . . . . . . . . . . . Data Cores Recovered . | . . . . . . . . . . . . . . . . . Used . | . . . . . . . . . . . . . . . . . Hacking Detections 24 | . 2 3 . . . . 7 3 . 5 . . . . . 4 Full Trace Events 2 | . . . . . . . 1 . . . . . . . . 1 Feedback Events . | . . . . . . . . . . . . . . . . . Feedback Blocked . | . . . . . . . . . . . . . . . . . Robot Schematics Acquired . | . . . . . . . . . . . . . . . . . Robots Built . | . . . . . . . . . . . . . . . . . Authchips . | . . . . . . . . . . . . . . . . . Time . | . . . . . . . . . . . . . . . . . Total Robot Build Rating . | . . . . . . . . . . . . . . . . . Part Schematics Acquired 6 | . . . . . . . 1 1 . . . . . 4 . . Parts Built 2 | . . . . . . . 2 . . . . . . . . . Authchips . | . . . . . . . . . . . . . . . . . Time 62 | . . . . . . . 62 . . . . . . . . . Total Part Build Rating 4 | . . . . . . . 4 . . . . . . . . . Part Studies Acquired 3 | . . . . . . . 3 . . . . . . . . . Parts Repaired . | . . . . . . . . . . . . . . . . . Time . | . . . . . . . . . . . . . . . . . Parts Recycled . | . . . . . . . . . . . . . . . . . Recycled Matter . | . . . . . . . . . . . . . . . . . Retrieved Matter . | . . . . . . . . . . . . . . . . . Retrieved Components 1 | . . . . . . . . . . 1 . . . . . . Parts Scanalyzed . | . . . . . . . . . . . . . . . . . Part Schematics Acquired . | . . . . . . . . . . . . . . . . . Parts Damaged . | . . . . . . . . . . . . . . . . . Bothacking | -11 -10 -9 -9 -9 -8 -8 -7 -6 -6 -6 -5 -5 -5 -5 -4 -4 ------------ Run | Yrd Mat Mat Min Exi Min Mat Fac Fac Was Fac Fac Upp Upp Zhi Pro Fac Used RIF Installer . | . . . . . . . . . . . . . . . . . Robots Hacked . | . . . . . . . . . . . . . . . . . Non-combat . | . . . . . . . . . . . . . . . . . Combat . | . . . . . . . . . . . . . . . . . Robot Hacks Applied . | . . . . . . . . . . . . . . . . . Relay Couplers Released . | . . . . . . . . . . . . . . . . . Fabnet Peak Effective % . | . . . . . . . . . . . . . . . . . Robots Rewired . | . . . . . . . . . . . . . . . . . Allies Hacked . | . . . . . . . . . . . . . . . . . Hacks Repelled . | . . . . . . . . . . . . . . . . . Allies | -11 -10 -9 -9 -9 -8 -8 -7 -6 -6 -6 -5 -5 -5 -5 -4 -4 -------- Run | Yrd Mat Mat Min Exi Min Mat Fac Fac Was Fac Fac Upp Upp Zhi Pro Fac Total Allies . | . . . . . . . . . . . . . . . . . Largest Group . | . . . . . . . . . . . . . . . . . Highest-Rated Group . | . . . . . . . . . . . . . . . . . Highest-Rated Ally . | . . . . . . . . . . . . . . . . . Total Orders . | . . . . . . . . . . . . . . . . . Ally Attacks . | . . . . . . . . . . . . . . . . . Total Damage . | . . . . . . . . . . . . . . . . . Kills . | . . . . . . . . . . . . . . . . . Allies Corrupted . | . . . . . . . . . . . . . . . . . Allies Melted . | . . . . . . . . . . . . . . . . . Intel | -11 -10 -9 -9 -9 -8 -8 -7 -6 -6 -6 -5 -5 -5 -5 -4 -4 ------- Run | Yrd Mat Mat Min Exi Min Mat Fac Fac Was Fac Fac Upp Upp Zhi Pro Fac Active Infowar (turns) 9220 | . 52 674 392 925 824 794 221 648 90 1403 91 1639 1052 . . 415 Optics 5598 | . . . . . . 454 221 648 90 1403 91 1639 1052 . . . Sensors 408 | . 52 356 . . . . . . . . . . . . . . Structural 3448 | . . . 387 925 822 340 . . . 867 91 16 . . . . Seismic 323 | . . 318 5 . . . . . . . . . . . . . Machine Analysis 415 | . . . . . . . . . . . . . . . . 415 Cloaking 1287 | . . . . . . . . . . . . 279 1008 . . . ECM 2 | . . . . . 2 . . . . . . . . . . . Robot Analysis Total 5 | . . . . . . . . . . . . . . 4 . 1 Derelict Logs Recovered 5 | . . . 1 . . . . . . . . 2 1 . 1 . Drone Launches . | . . . . . . . . . . . . . . . . . Drone Recoveries . | . . . . . . . . . . . . . . . . . Exploration | -11 -10 -9 -9 -9 -8 -8 -7 -6 -6 -6 -5 -5 -5 -5 -4 -4 ------------- Run | Yrd Mat Mat Min Exi Min Mat Fac Fac Was Fac Fac Upp Upp Zhi Pro Fac Turns Passed 14299 | 156 525 760 450 925 826 795 1606 1045 90 1422 91 1639 1540 443 335 1651 Spaces Moved 6725 | 50 278 318 223 486 370 388 810 505 69 607 70 659 637 162 226 867 Core 57 | 14 . . . . . . . . . . . . . . . 43 Treads 1473 | . . . . . . . . . . . . 347 637 162 82 245 Legs 4381 | 36 278 318 223 486 370 388 810 505 69 607 70 199 . . . 22 Wheels 113 | . . . . . . . . . . . . 113 . . . . Hover 256 | . . . . . . . . . . . . . . . . 256 Flight 445 | . . . . . . . . . . . . . . . 144 301 Fastest Speed 34 | 50 120 120 190 190 190 120 108 113 105 113 119 119 160 162 34 40 Average Speed 160 | 126 120 173 190 190 190 144 112 179 114 172 119 211 211 162 111 110 Slowest Speed 300 | 200 120 190 190 190 190 190 120 185 181 192 119 260 242 162 242 300 Overloaded Moves . | . . . . . . . . . . . . . . . . . Propulsion Burnouts . | . . . . . . . . . . . . . . . . . Robots Hopped 5 | . . . . . . . . . . . . . . . 1 4 Potential Cave-ins . | . . . . . . . . . . . . . . . . . Cave-ins Triggered . | . . . . . . . . . . . . . . . . . Exploration Rate (%) 41 | 6 40 34 44 90 61 33 15 17 73 17 2 84 75 62 44 10 Regions Visited 16 Branch Regions 7 Pre-discovered Areas 3 | . . . . . . . . . . . . . . 3 . . Known Exits Taken 1 | . . . . . . . . . . . . 1 . . . . Unknown Exits Taken 13 | 1 1 1 1 1 1 1 1 . . 1 1 . 1 1 1 . Scrap Searched 7 | . . . . . 1 . . . . . . 1 3 . 2 . Spaces Dug 57 | . . 4 . . 14 10 11 5 . 6 . . . 7 . . Terrain Destroyed 188 | . . 7 . . 30 68 33 5 . 6 . 8 2 7 2 20 Melee 31 | . . 4 . . . 5 11 5 . 6 . . . . . . Projectile 28 | . . 3 . . . . . . . . . 7 1 7 2 8 AOE 128 | . . . . . 30 63 22 . . . . . 1 . . 12 Terrain Rammed . | . . . . . . . . . . . . . . . . . Walls Destroyed . | . . . . . . . . . . . . . . . . . Machines Disabled . | . . . . . . . . . . . . . . . . . Actions | -11 -10 -9 -9 -9 -8 -8 -7 -6 -6 -6 -5 -5 -5 -5 -4 -4 --------- Run | Yrd Mat Mat Min Exi Min Mat Fac Fac Was Fac Fac Upp Upp Zhi Pro Fac Total 9375 | 99 416 414 239 489 459 582 1426 615 82 943 75 792 796 333 276 1339 Wait 1700 | 5 88 26 1 . 65 143 539 51 . 265 . 4 116 151 1 245 Move 6700 | 49 277 317 222 485 369 387 809 505 68 606 69 658 636 161 223 859 Hop 5 | . . . . . . . . . . . . . . . 1 4 Pick Up 162 | 11 4 6 3 1 . 5 12 20 . 26 2 20 10 5 8 29 Fast Attach 75 | 5 1 3 1 . 2 3 3 1 3 7 1 9 1 . 1 34 Attach 92 | 2 . 5 1 1 . 5 2 2 1 4 1 26 13 1 10 18 Detach 26 | . . . . 1 . . 2 . 4 4 . 2 1 2 1 9 Swap 48 | . 4 3 1 . 1 6 4 3 1 5 . 10 4 1 1 4 Drop 82 | 1 8 3 4 1 2 9 12 7 5 2 1 . 1 1 4 21 Fire 327 | 26 34 27 3 . 9 11 4 . . . . 49 14 11 24 115 Melee 139 | . . 24 3 . 10 13 39 16 . 19 1 14 . . . . Ram . | . . . . . . . . . . . . . . . . . Kick 1 | . . . . . 1 . . . . . . . . . . . Crush . | . . . . . . . . . . . . . . . . . Escape Stasis 15 | . . . . . . . . 10 . 5 . . . . . . Rewire 3 | . . . . . . . . . . . . . . . 2 1 Trap . | . . . . . . . . . . . . . . . . . Miscellaneous . | . . . . . . . . . . . . . . . . . Route ------- -11/Scrapyard -10/Materials -9/Materials -9/Mines (discovered 2 exits: *Mat / *Exi) -9/Exiles -8/Mines -8/Materials -7/Factory -6/Factory -6/Waste -6/Factory (discovered 3 exits: [*Fac] / Low x2) -5/Factory -5/Upper Caves -5/Upper Caves -5/Zhirov -4/Proximity Caves -4/Factory History --------- Turn | Location | Event 29 | -11/Scrapyard | Discovered new exit (range 15) 157 | -11/Scrapyard | Entered Materials 310 | -10/Materials | Build established: Mutant 374 | -10/Materials | Discovered new exit (range 3) 682 | -10/Materials | Entered another Materials area 682 | -9/Materials | Evolved 2 slots: Weapon x2 1115 | -9/Materials | Lost 4 parts (1u3w) 1228 | -9/Materials | Discovered new exit (range 10) 1390 | -9/Materials | Build established: Gunner 1442 | -9/Materials | Entered Mines 1446 | -9/Mines | Joined a pair of Derelicts in attacking an 0b10 outpost 1457 | -9/Mines | Met a Derelict bent on vengeance 1533 | -9/Mines | Discovered new exit (range 9) 1549 | -9/Mines | Met a Derelict shopkeep closing up shop 1689 | -9/Mines | Found a Scrap Suit stashed away for nefarious purposes 1693 | -9/Mines | Found Scrap Suit 1809 | -9/Mines | Build established: Skirmisher 1882 | -9/Mines | Deemed a non-threat by the Exiles lab entrance 1882 | -9/Mines | Discovered new exit (range 6) 1892 | -9/Mines | Entered Exiles 1939 | -9/Exiles | Met 8R-AWN 1968 | -9/Exiles | Met EX-HEX 2023 | -9/Exiles | Met EX-BIN 2049 | -9/Exiles | Aligned with FarCom system 2053 | -9/Exiles | Given EX-Vault access code 2177 | -9/Exiles | Met EX-DEC 2217 | -9/Exiles | Visited The Gauntlet 2218 | -9/Exiles | Build established: Mutant 2520 | -9/Exiles | Opened EX-Vault 2535 | -9/Exiles | Found Chronowheel 2574 | -9/Exiles | Warned to stay clear of 0b10 Research branches 2800 | -9/Exiles | Discovered new exit (range 10) 2817 | -9/Exiles | Left Exiles lab with Chronowheel 2817 | -9/Exiles | Entered Mines 2872 | -8/Mines | Discovered new exit (range 8) 3175 | -8/Mines | Build established: Skirmisher 3643 | -8/Mines | Entered Materials 3643 | -8/Materials | Evolved 2 slots: Propulsion x1, Utility x1 3781 | -8/Materials | Lost 3 parts (1n2w) 4427 | -8/Materials | Discovered new exit (range 5) 4438 | -8/Materials | Entered Factory 4438 | -7/Factory | Evolved 2 slots: Propulsion x1, Utility x1 4688 | -7/Factory | Identified exit to DSF 4914 | -7/Factory | Fabricated VTOL Module? 5261 | -7/Factory | Build established: Mutant 5562 | -7/Factory | Discovered new exit (range 10) 5878 | -7/Factory | Build established: Skirmisher 6044 | -7/Factory | Entered another Factory area 6044 | -6/Factory | Evolved 2 slots: Power x1, Propulsion x1 7089 | -6/Factory | Sucked down chute 7089 | -6/Factory | Entered Waste 7104 | -6/Waste | EMP discharged 7120 | -6/Waste | Spotted C-40 Crusher 7127 | -6/Waste | Spotted C-40 Crusher 7127 | -6/Waste | Spotted C-40 Crusher 7127 | -6/Waste | Spotted C-40 Crusher 7140 | -6/Waste | Spotted C-40 Crusher 7142 | -6/Waste | Spotted C-40 Crusher 7151 | -6/Waste | Discovered new exit (range 20) 7155 | -6/Waste | Crushed by Compactor (1 part destroyed, 1 dropped) 7158 | -6/Waste | Crushed by Compactor (1 part destroyed, 2 dropped) 7161 | -6/Waste | Crushed by Compactor (1 part destroyed, 1 dropped) 7179 | -6/Waste | Entered Factory 7192 | -6/Factory | Lost 3 parts (3n) 7250 | -6/Factory | Identified exit to DSF 7572 | -6/Factory | Build established: Gladiator 8323 | -6/Factory | Discovered new exit (range 7) 8348 | -6/Factory | Identified exit to Lower Caves 8601 | -6/Factory | Entered another Factory area 8601 | -5/Factory | Evolved 2 slots: Power x1, Propulsion x1 8657 | -5/Factory | Discovered new exit (range 14) 8692 | -5/Factory | Entered Upper Caves 8812 | -5/Upper Caves | Identified exit to Upper Caves 8816 | -5/Upper Caves | Lost 5 parts (1p1n2u1w) 8890 | -5/Upper Caves | Attracted the attention of an 0b10 checkpoint 8899 | -5/Upper Caves | System corruption reached 10% 8954 | -5/Upper Caves | Lost 9 parts (3p3n1u2w) 9179 | -5/Upper Caves | Lost 9 parts (5n2u2w) 9242 | -5/Upper Caves | Found DCF Scrap (14 items) 9305 | -5/Upper Caves | Learned Factory emergency access door positions 9685 | -5/Upper Caves | Attracted the attention of an 0b10 outpost 9776 | -5/Upper Caves | Lost 3 parts (1p2u) 10035 | -5/Upper Caves | Build established: Scavenger-Skirmisher 10331 | -5/Upper Caves | Entered another Upper Caves area 10393 | -5/Upper Caves | Learned Factory terminal intel 10647 | -5/Upper Caves | Build established: Derelict-Skirmisher 10747 | -5/Upper Caves | Lost 8 parts (1p4n3w) 11297 | -5/Upper Caves | Spotted B-75 Beast 11380 | -5/Upper Caves | Lost 6 parts (2p1n2u1w) 11408 | -5/Upper Caves | Destroyed B-75 Beast 11669 | -5/Upper Caves | Build established: Derelict-Mutant 11855 | -5/Upper Caves | Discovered new exit (range 6) 11871 | -5/Upper Caves | Entered Zhirov 11871 | -5/Zhirov | Discovered new exit (range 3) 11996 | -5/Zhirov | Met Zhirov 12031 | -5/Zhirov | Found Alien Artifact 12197 | -5/Zhirov | Found Alien Artifact 12210 | -5/Zhirov | Identified Integrated Reactor 12210 | -5/Zhirov | Installed Integrated Reactor, increased core energy generation (+10) 12234 | -5/Zhirov | Learned location of Quarantine (-2) 12234 | -5/Zhirov | Learned location of Testing (-3) 12234 | -5/Zhirov | Learned location of Command (-1) 12268 | -5/Zhirov | Zhirov requested help retrieving the SGEMP Prototype 12314 | -5/Zhirov | Entered Proximity Caves 12328 | -4/Proximity Caves | Core integrity fell below 50% 12584 | -4/Proximity Caves | System corruption reached 30% 12628 | -4/Proximity Caves | Learned 4 Research zone layouts 12632 | -4/Proximity Caves | Discovered new exit (range 12) 12649 | -4/Proximity Caves | Entered Factory 12649 | -4/Factory | Evolved 2 slots: Utility x2 12650 | -4/Factory | Lost 12 parts (1p7n2u2w) 12651 | -4/Factory | Loaded intel: 26 terminal locations 12670 | -4/Factory | Found Quantum Capacitor 13188 | -4/Factory | Build established: Tank 13411 | -4/Factory | Found Prototype Hackware 13545 | -4/Factory | Lost 3 parts (1p2n) 13651 | -4/Factory | System corruption reached 10% 13678 | -4/Factory | Lost 3 parts (1p1u1w) 13797 | -4/Factory | Lost 18 parts (2n13u3w) 13969 | -4/Factory | Lost 4 parts (1n3w) 14198 | -4/Factory | Lost 3 parts (2u1w) 14253 | -4/Factory | Core integrity fell below 50% 14278 | -4/Factory | Lost 9 parts (2p5n2u) 14298 | -4/Factory | Core integrity fell below 20% 14300 | -4/Factory | Destroyed by X-77 Beamer with Gatling Laser Last Messages --------------- [Achievement: Physics Hates This One Trick] 14249_ ALERT: Security rotation in progress. 14261_ 2CTGS9T4WWLGQDYBL:|W:TTWVAZEM%R&IMQ 14269_ Acquired Phase Cannon. 14277_ System corrupted: Matter fused (-7). 14288_ Arm. Medium Treads destroyed. 14291_ X-77 Beamer destroyed. 14292_ System corrupted: Heat flow error (+267). 14294_ Overheating: Core damaged (-149). 14295_ Overheating: Phase Cannon damaged (-94). 14296_ Phase Cannon destroyed. 14298_ Overheating: Core damaged (-230). 14299_ Power failure, Lgt. Quantum Reactor shutdown. 14299_ Overheating: Phase Cannon damaged (-93). 14299_ Overheating: Lgt. Quantum Reactor damaged (-26). 14300_ Overheating: System interference. 14300_ Phase Cannon temporarily disabled. 14300_ Lgt. Quantum Reactor destroyed. Map ----- +----------------------------------------------------+ | ?????????????????????????????????????????????????? | | ?????????????????????????????????????????????????? | | ?????????????????????????????""""?""""???????????? | | ?????????????????????????????""""?""""???????????? | | ?????????????????????????????""""?""""???????????? | | ?????????????????????????????""""?""""???????????? | | ?????????????????????????????????????????????????? | | ??????????????????????????????????""""???????????? | | ???????????????????????????""?????""""???????????? | | ???????????????????????????"Y?????""""???????????? | | ???????????????????????????""?????""""???????????? | | ???????????????????????????????????????+????+????? | | ?????????????????????????????????????????????????? | | ?????????????????????????????????????????????????? | | ?????????????????????????????????????????????????? | | ?????????????????????????????????????????????????? | | ?????????????????????????????????????????????????? | | ?????????????????????????????????????????????????? | | ?????????????????????????????????????????????????? | | ??????????????????????########???????????????????? | | ??????????????????????# #???????????????????? | | ??????????????????????# #???????????????????? | | ??????????????????????# #???????????????????? | | ??????????????????????# #???????????????????? | | ??????????????????????# ###?????????????????? | | ??????????????????????# @% ; #?????????????????? | | ??????????????????????###;x[####?????????????????? | | ????????????????????????##!##????????????????????? | | ?????????????????????????# ;?????????????????????? | | ?????????????????????????# ##????????????????????? | | ?????????????????????????# #?????????????????????? | | ?????????????????????????# #?????????????????????? | | ?????????????????????????# #?????????????????????? | | ?????????????????????????# #?????????????????????? | | ?????????????????????????# #?????????????????????? | | ?????????????????????????# #?????????????????????? | | ?????????????????????????# #?????????????????????? | | ?????????????????????????# #?????????????????????? | | ??????????????????######?# #?????????????????????? | | ??????????????????# !?# #?????????????????????? | | ??????????????????#""" # #?????????????????????? | | ??????????????????#""" # #?????????????????????? | | ??????????????????#""" + #?????????????????????? | | ??????????????????# # #?????????????????????? | | ??????????????????# !# #?????????????????????? | | ????????????############?# #?????????????????????? | | ????????????# """ """ #??# #?????????????????????? | | ???????# ???# """ """ #??# #?????????????????????? | | ???????# ???# """ """ #??# #?????????????????????? | | ???????# ??# #??# #?????????????????????? | +----------------------------------------------------+ Best States ------------- Heat Dissipation 62 Coolant Potential 180 Energy Generation 61 Energy Capacity 1285 Matter Stores 300 Matter Capacity 300 Sight Range 22 Robot Scan Range 14 Terrain Scan Density 10 ECM Strength 1 Cloak Strength 3 Power Amplification 30 Armor Coverage 225 Resistance: KI 20 Resistance: TH 20 Resistance: EM 20 Power Shielding 66 Weapon Cycling 15 Melee Speed Boost 20 Evasion (%) 67 Targeting Accuracy 6 Melee Accuracy 5 Target Analysis 6 Recoil Reduction 8 Offensive Hacking 10 Item Schematics ----------------- VTOL Module | -7/Factory | Hacked KE Penetrator | -6/Factory | Hacked Assault Drone Bay | -5/Zhirov | Free Exp. Heat Sink | -5/Zhirov | Free Exp. Optical Array | -5/Zhirov | Free Imp. Arc Thrower | -5/Zhirov | Free Robot Schematics ------------------ None Fabricated ------------ VTOL Module | x2 | -7/Factory Repaired ---------- Nothing Studied --------- Imp. Carbon-fiber Leg | -7/Factory | Hacked Missile Launcher | -7/Factory | Hacked EM Pulse Cannon | -7/Factory | Hacked Alien Tech Used ----------------- Integrated Reactor Achievements -------------- Physics Hates This One Trick Resistances Are Futile Tank Challenges ------------ None Game ------ Seed TargetingGrenadeSuperbattery Manual? 0 Play Time 01:54:31 Cumulative 61.8 hours Start 2026.01.23 @ 20:16:29 End 2026.01.24 @ 17:13:09 Sessions 4 Manual Loads 0 Difficulty Rogue Special Mode None Game No. 40 Rogue 36 Adventurer 4 Explorer 0 Win Type - Total 1 Types 1/0/0/0/0/0/0/0/0/0 Lore% 37 Gallery% 37 Achievement% 30 Wizard Run 0 Options --------- Layout 1 ASCII 0 Keyboard 1 Movement Vi Keybinds 0 Fullscreen 0 Font 20/SmallcapsGlow Map View 50x35 Zoom Use 0% Tactical HUD 1 Map Filters NONE Filters NONE Steam 1 RUN: 16d38d2d-4599-4e90-b6b9-c37d0ae07d58